Cogmind - Beta 10.1 @@@ ROGUE MODE // 2020.09.28 @ 17:37:45 Player: Stryker Result: Self-destructed Performance ------------- Evolutions (8) 4000 Regions Visited (28) 5600 Robots Destroyed (344) 1720 Value Destroyed (17518) 17518 Prototype IDs (66) 1320 Alien Tech Used (3) 600 Bonus (12583) 12583 TOTAL SCORE: 43341 Bonus ------- Triggered High Security 500 High Alert Combat Kills 4644 Follower Combat Kills 3507 Met Data Miner 300 Met Imprinter 300 Met Zhirov 300 Built Enhanced Grunts 300 Met R17 at Cetus 500 Met R17 at Research 2000 Scanned by Researcher 500 Friendly Fire -268 Cogmind --------- Core Integrity 628/1450 Matter 290/300 Energy 200/925 System Corruption 26% Temperature Cool (0) Movement Immobile (Siege) Ox1 Location -2/Research Parts ------- > --- POWER (1) -------- Reinforced Antimatter Reactor > --- PROPULSION (5) --- Centrium Heavy Treads Biometal Heavy Treads > --- UTILITY (14) ----- Advanced Heat Sink Advanced Heat Sink Advanced Heat Sink High-capacity Storage Unit High-capacity Storage Unit High-capacity Storage Unit Improved Energy Well Advanced Signal Interpreter SHELL Armor Improved Energy Mantle Experimental Hacking Suite > --- WEAPON (4) ------- Improved KE Penetrator Heavy Gauss Cannon CR-A16's Behemoth Slayer > --- INVENTORY (28) --- Light Quantum Reactor Armored Heavy Treads Biometal Heavy Treads Biometal Heavy Treads Biometal Heavy Treads High-capacity Storage Unit Matter Compressor (250) Experimental Sensor Array Experimental Terrain Scanner Advanced Terrain Scan Processor Advanced Weapon Cycler Improved Heavy Armor Plating System Restoration Module Tiamat Missile Launcher Peak State ------------ > --- POWER ------------ Particle Reactor > --- PROPULSION ------- Biometal Heavy Treads Biometal Heavy Treads Biometal Leg > --- UTILITY ---------- Advanced Coolant Injector High-capacity Storage Unit High-capacity Storage Unit High-capacity Storage Unit Experimental Sensor Array Advanced Signal Interpreter Medium Regenerative Plating SHELL Armor System Mapper Makeshift System Shield Ghost Barrier System Restoration Module > --- WEAPON ----------- Advanced Variable Charge Gun Cooled Nova Cannon Coil Gun CR-A16's Behemoth Slayer > --- INVENTORY -------- Reinforced Antimatter Reactor Improved Heavy Treads Centrium Heavy Treads Biometal Heavy Treads Biometal Heavy Treads High-capacity Storage Unit Improved Energy Well Matter Compressor Experimental Terrain Scanner Advanced Terrain Scan Processor Precision Matter Filter Precision Matter Filter Advanced Weapon Cycler Advanced Focal Shield Advanced Thermal Shield Experimental Thermal Shield Improved Energy Mantle Experimental Hacking Suite Hypervelocity Gauss Rifle KE Penetrator Railgun Improved KE Penetrator Helical Railgun Tiamat Missile Launcher [Rating: 191] Favorites ----------- Power Reinforced Deuterium Engine Engine Reinforced Deuterium Engine Power Core Reinforced Fission Core Reactor Particle Reactor Propulsion Light Treads Treads Light Treads Leg Flexi-carbon Leg Wheel Armored Huge Wheel Utility High-capacity Storage Unit Device Experimental Sensor Array Storage High-capacity Storage Unit Processor Advanced Signal Interpreter Hackware Improved Hacking Suite Protection Centrium Medium Armor Plating Weapon KE Penetrator Energy Gun Lightning Gun Energy Cannon Long-range Proton Cannon Ballistic Gun KE Penetrator Ballistic Cannon Slug Cannon Launcher Grenade Launcher Slashing Weapon Scythe Piercing Weapon CR-A16's Behemoth Slayer Build | -11 -10 -10 -10 -9 -8 -7 -7 -7 -7 -6 -6 -6 -6 -6 -5 -5 -5 -5 -5 -4 -4 -4 -4 -4 -4 -3 -3 -2 ------- Run | Scr Mat Min Exi Min Mat Fac Low Low Zio Pro Fac Low Low Dat Pro Fac Upp Upp Zhi Pro Fac Ext Cet Arc Hub Res Tes Res Slots Evolved 16 | . . . . . 4 2 . . . . 2 . . . . 2 . . . . 2 . . . . 2 . 2 Power . | . . . . . . . . . . . . . . . . . . . . . . . . . . . . . Propulsion 2 | . . . . . 1 1 . . . . . . . . . . . . . . . . . . . . . . Utility 12 | . . . . . 3 1 . . . . 1 . . . . 2 . . . . 2 . . . . 1 . 2 Weapon 2 | . . . . . . . . . . . 1 . . . . . . . . . . . . . . 1 . . Parts Attached 659 | 2 14 5 . . 27 43 3 7 3 16 76 24 4 1 6 14 10 8 3 15 58 43 7 2 14 17 109 128 Power 23 | . 3 2 . . 2 4 . . . 1 3 2 . . . . . . . . 1 2 . . . 1 . 2 Engine 14 | . 3 2 . . 2 2 . . . 1 2 1 . . . . . . . . . 1 . . . . . . Core 4 | . . . . . . 2 . . . . . 1 . . . . . . . . 1 . . . . . . . Reactor 5 | . . . . . . . . . . . 1 . . . . . . . . . . 1 . . . 1 . 2 Propulsion 64 | 1 3 2 . . 10 6 . 2 . 1 7 5 . . . 2 1 . . 1 4 4 1 . . 1 3 10 Treads 47 | . 2 1 . . 6 5 . 2 . 1 5 5 . . . 1 1 . . 1 2 3 1 . . 1 3 7 Leg 3 | . . . . . . . . . . . . . . . . . . . . . . . . . . . . 3 Wheel 14 | 1 1 1 . . 4 1 . . . . 2 . . . . 1 . . . . 2 1 . . . . . . Hover . | . . . . . . . . . . . . . . . . . . . . . . . . . . . . . Flight . | . . . . . . . . . . . . . . . . . . . . . . . . . . . . . Utility 392 | 1 3 . . . 9 18 2 3 3 9 38 13 3 1 5 10 8 6 3 8 36 27 2 1 11 10 82 80 Device 270 | 1 . . . . 4 9 1 2 2 5 20 9 2 . 3 5 4 4 1 5 22 23 1 1 8 6 62 70 Storage 21 | . 3 . . . 4 . . . . . 1 . . . . 1 . . . . . . . . 1 . 4 7 Processor 2 | . . . . . . 1 . . . . 1 . . . . . . . . . . . . . . . . . Hackware 11 | . . . . . . . . . . . 2 . . . . 1 . . . . 4 . . . . 1 1 2 Protection 88 | . . . . . 1 8 1 1 1 4 14 4 1 1 2 3 4 2 2 3 10 4 1 . 2 3 15 1 Artifact . | . . . . . . . . . . . . . . . . . . . . . . . . . . . . . Weapon 180 | . 5 1 . . 6 15 1 2 . 5 28 4 1 . 1 2 1 2 . 6 17 10 4 1 3 5 24 36 Energy Gun 47 | . 1 . . . 1 9 1 . . 1 11 . . . . . . 1 . 1 3 1 1 . . . 4 12 Energy Cannon 13 | . . . . . . . . . . . 2 1 . . . 1 . 1 . . 2 1 . . 1 . 1 3 Ballistic Gun 70 | . 3 . . . 2 3 . 1 . 1 10 1 1 . . . . . . 2 7 5 2 . 2 2 14 14 Ballistic Cannon 5 | . . 1 . . 1 . . . . . 1 . . . . . . . . . . . . . . . . 2 Launcher 15 | . . . . . . . . 1 . 2 1 1 . . 1 . 1 . . 2 . 2 1 1 . 1 . 1 Special Weapon . | . . . . . . . . . . . . . . . . . . . . . . . . . . . . . Impact Weapon . | . . . . . . . . . . . . . . . . . . . . . . . . . . . . . Slashing Weapon 8 | . 1 . . . 2 3 . . . . 2 . . . . . . . . . . . . . . . . . Piercing Weapon 22 | . . . . . . . . . . 1 1 1 . . . 1 . . . 1 5 1 . . . 2 5 4 Special Melee Weapon . | . . . . . . . . . . . . . . . . . . . . . . . . . . . . . Unidentified Prototypes 30 | . . . . . 2 1 . . 1 . 3 1 . . . . . . 2 . . . 3 . 1 1 11 4 Parts Lost 80 | . . 2 . . 2 4 . 2 . . 14 . . . . . . . . 2 8 5 . . . . 6 35 Power 4 | . . 1 . . 1 1 . . . . 1 . . . . . . . . . . . . . . . . . Propulsion 15 | . . 1 . . . 1 . 2 . . 3 . . . . . . . . . . 1 . . . . 2 5 Utility 19 | . . . . . . . . . . . 3 . . . . . . . . 1 3 1 . . . . 2 9 Weapon 42 | . . . . . 1 2 . . . . 7 . . . . . . . . 1 5 3 . . . . 2 21 Highest Loss Streak 5 | . . 1 . . 1 1 . 2 . . 4 . . . . . . . . 2 3 1 . . . . 2 5 Average Slot Usage (%) 91 | . 99 99 100 100 92 91 92 91 92 92 92 92 93 93 93 93 94 94 93 89 89 89 90 90 90 89 87 80 Engine 4 | . 14 13 14 14 9 2 7 7 7 7 6 6 6 6 6 5 5 5 5 5 . 1 . . . . . . Treads 13 | . 12 14 14 14 11 14 15 14 15 15 13 14 18 18 18 16 16 16 16 12 9 9 11 15 15 13 12 7 Wheel 5 | . 13 14 14 14 10 7 7 7 7 7 5 6 6 6 6 5 5 5 5 5 5 5 3 . . . . . Device 7 | . 5 . . . 3 4 6 6 7 5 7 5 5 6 5 9 10 9 5 8 7 13 15 15 13 12 12 12 Storage 20 | . 22 28 28 28 34 30 30 30 30 30 24 19 18 18 18 16 16 16 16 16 15 15 15 15 15 13 13 12 Processor 4 | . . . . . . 6 7 7 7 7 4 6 6 6 6 5 5 5 5 5 5 5 5 5 5 4 4 4 Hackware 9 | . . . . . . . . . . . 6 12 12 12 12 15 16 16 16 16 22 16 15 15 15 17 12 12 Protection 2 | . . . . . 5 2 . . . 1 2 . . . . 2 . 1 4 1 4 5 5 5 6 4 7 5 Energy Gun 4 | . 5 . . . 2 8 15 7 7 7 8 . . . . . . 2 5 4 3 2 1 5 5 4 . 5 Energy Cannon 2 | . . . . . . . . . . . . 6 6 6 6 5 5 5 5 4 2 2 . . . 4 2 1 Ballistic Gun 7 | . 22 17 14 14 7 3 . 1 . 1 7 11 7 12 11 5 5 5 5 2 8 8 12 5 7 5 11 6 Ballistic Cannon 1 | . . 10 14 14 6 . . . . . . . . . . . . . . . . . . . . . . 1 Naked Turns . | . . . . . . . . . . . . . . . . . . . . . . . . . . . . . Heaviest Build 199 | 12 75 79 77 77 136 135 145 146 133 155 168 139 136 136 138 137 143 140 140 139 153 165 156 156 157 158 182 199 Greatest Support 185 | 20 12 12 10 10 40 28 28 28 28 28 60 28 28 28 28 28 28 28 28 28 97 75 182 182 182 182 185 155 Greatest Overweight (x) 11 | 1 6 7 7 7 11 6 5 5 4 5 6 4 4 4 4 4 5 4 4 4 5 5 5 . . . 5 1 Average Overweight (x) 3 | . 3 6 7 7 6 4 4 4 4 4 4 3 4 4 4 4 4 4 4 4 3 4 3 . . . . . Largest Inventory Capacity 34 | 6 20 20 20 20 34 34 34 34 34 34 34 28 28 28 28 28 28 28 28 28 28 28 28 28 28 28 28 28 Average Capacity 28 | 6 15 20 20 20 32 34 34 34 34 34 32 28 28 28 28 28 28 28 28 28 28 28 28 28 28 28 28 28 Most Carried 34 | 6 20 20 20 20 34 34 34 34 34 34 34 28 28 28 28 28 28 28 28 28 28 28 28 28 28 28 28 28 Average Carried 28 | 6 12 19 20 20 29 33 33 33 34 33 31 27 28 28 28 27 28 28 27 27 27 27 27 28 27 27 27 26 Final Capacity 34 | 6 20 20 20 20 34 34 34 34 34 34 28 28 28 28 28 28 28 28 28 28 28 28 28 28 28 28 28 28 Final Carried 34 | 6 20 20 20 20 34 34 34 34 34 34 28 28 28 28 28 28 28 28 28 26 28 28 28 28 28 28 28 19 Class Distribution -------------------- 38% | Hauler-Mutant 15% | Hacker-Mutant 11% | Hacker-Tank 8% | Hacker-Skirmisher 7% | Hauler-Skirmisher 5% | Hacker-Assassin 4% | Hauler-Gunner Dominant Class ---------------- Hauler-Mutant | -10/Materials Hauler-Mutant | -10/Mines Hauler-Mutant | -10/Exiles Hauler-Mutant | -9/Mines Hauler-Mutant | -8/Materials Hauler-Mutant | -7/Factory Hauler-Mutant | -7/Lower Caves Hauler-Mutant | -7/Lower Caves Hauler-Mutant | -7/Zion Hauler-Mutant | -6/Proximity Caves Hauler-Mutant | -6/Factory Hauler-Gunner | -6/Lower Caves Hauler-Mutant | -6/Lower Caves Hauler-Skirmisher | -6/Data Miner Hauler-Skirmisher | -5/Proximity Caves Hacker-Mutant | -5/Factory Hacker-Mutant | -5/Upper Caves Hacker-Mutant | -5/Upper Caves Hacker-Mutant | -5/Zhirov Hacker-Assassin | -4/Proximity Caves Hacker-Tank | -4/Factory Hacker-Mutant | -4/Extension Hacker-Tank | -4/Cetus Hacker-Tank | -4/Archives Hacker-Mutant | -4/Hub_04(d) Hacker-Tank | -3/Research Hacker-Assassin | -3/Testing Hacker-Skirmisher | -2/Research Resources | -11 -10 -10 -10 -9 -8 -7 -7 -7 -7 -6 -6 -6 -6 -6 -5 -5 -5 -5 -5 -4 -4 -4 -4 -4 -4 -3 -3 -2 ----------- Run | Scr Mat Min Exi Min Mat Fac Low Low Zio Pro Fac Low Low Dat Pro Fac Upp Upp Zhi Pro Fac Ext Cet Arc Hub Res Tes Res Matter Collected 12801 | 220 428 269 . 23 425 989 55 130 20 245 1107 658 56 . 88 160 121 84 43 195 1236 644 193 . 145 257 2242 2768 Remotely . | . . . . . . . . . . . . . . . . . . . . . . . . . . . . . Salvage Created 19589 | 119 459 326 . 37 455 1281 48 76 . 318 1442 364 60 . 125 76 22 144 354 290 2320 1078 118 . 89 335 3508 6145 Parts 962 | 5 28 21 . 4 32 76 2 4 . 13 89 17 3 . 5 2 . 3 4 8 122 31 5 . 5 8 171 304 Haulers Intercepted 8 | . 1 . . . 2 3 . . . . . . . . . . . . . . 1 . . . . 1 . . Recyclers Shooed 11 | . . 1 . . 1 . . . . . . . . . . 1 . . . . . 3 . . . . 1 4 Parts Field Recycled . | . . . . . . . . . . . . . . . . . . . . . . . . . . . . . Retrieved Matter . | . . . . . . . . . . . . . . . . . . . . . . . . . . . . . Parts Self-Destructed 45 | . . . . . . . 1 2 . 9 . 8 6 . 6 . 2 3 . 8 . . . . . . . . Prevented 28 | . . . . . . . 1 2 . 6 . 4 . . 3 . 3 . 3 6 . . . . . . . . Kills | -11 -10 -10 -10 -9 -8 -7 -7 -7 -7 -6 -6 -6 -6 -6 -5 -5 -5 -5 -5 -4 -4 -4 -4 -4 -4 -3 -3 -2 ------- Run | Scr Mat Min Exi Min Mat Fac Low Low Zio Pro Fac Low Low Dat Pro Fac Upp Upp Zhi Pro Fac Ext Cet Arc Hub Res Tes Res Combat Hostiles Destroyed 279 | . 10 10 . 3 16 18 1 5 . 7 23 6 2 . 2 1 1 2 . 6 30 9 2 . 1 3 45 76 Melee 3 | . . . . . . . . . . . . . . . . . . . . . . . . . . . . 3 Guns 191 | . 10 8 . 2 5 17 1 2 . 3 16 2 1 . . . . . . 1 22 6 2 . 1 2 39 51 Cannons 43 | . . 2 . 1 11 . . . . . . 1 1 . . 1 . 2 . . 5 . . . . 1 6 12 AOE 27 | . . . . . . 1 . 3 . 3 3 2 . . 2 . 1 . . 3 1 . . . . . . 8 Classes Destroyed 19 | 2 4 2 . . 2 3 . . . 1 1 1 . . . . . . . . 1 . . . . . 1 1 Worker 19 | . . 1 . . . 3 . . . . . . . . . . . . . . 3 . . . . . 6 6 Builder 12 | . . . . . . . . . . . 2 . . . . . . . . . . . . . . . 2 8 Tunneler 2 | 1 . . . . . . . . . . . . . . . . . . . . 1 . . . . . . . Hauler 8 | . 1 . . . 2 3 . . . . . . . . . . . . . . 1 . . . . 1 . . Recycler 7 | 1 . . . . . 1 . . . . . . . . . . . . . . . 2 . . . . 1 2 Operator 3 | . . . . . 1 . . . . . . . . . . . . . . . . 1 . . . . 1 . Watcher 11 | . 1 . . . . 1 . . . . . . . . . . . . . . 1 1 . . . . 1 6 Swarmer 54 | . 3 4 . 3 11 3 . 5 . 4 1 4 2 . . . 1 . . 4 . . . . . . 4 5 Saboteur 1 | . . . . . . . . . . . . . . . . . . . . . . . . . . . . 1 Grunt 96 | . 7 6 . . 1 9 . . . . 10 . . . 2 . . . . 1 8 3 1 . . 3 15 30 Brawler 3 | . . . . . . . . . . . . . . . . . . . . . . . . . . . . 3 Duelist 7 | . . . . . . 1 . . . . 1 . . . . . . . . . . . . . . . . 5 Protector 1 | . . . . . . . . . . . . . . . . . . . . . 1 . . . . . . . Researcher 1 | . . . . . . . . . . . . . . . . . . . . . . . . . . . 1 . Sentry 23 | . . . . . 4 1 . . . 1 2 1 . . . 1 . 1 . . 4 4 . . 1 . . 3 Hunter 35 | . . . . . . 2 1 . . . 4 . . . . . . . . . 4 . . . . . 15 9 Programmer 50 | . . . . . . 2 . . . 1 4 . . . . . . 1 . . 12 . . . . . 11 19 Behemoth 8 | . . . . . . . . . . 1 1 1 . . . . . . . 1 1 2 . . . . . 1 Cetus Guard 1 | . . . . . . . . . . . . . . . . . . . . . . . 1 . . . . . Zionite 1 | . . 1 . . . . . . . . . . . . . . . . . . . . . . . . . . Savage 1 | . . . . . . . . . . . . 1 . . . . . . . . . . . . . . . . Best Kill Streak 11 | 2 3 3 . 3 4 8 1 3 . 3 6 4 2 . 2 1 1 2 . 4 7 4 1 . 1 3 10 11 Combat Bots Only 9 | . 3 3 . 3 4 5 1 3 . 3 6 4 2 . 2 1 1 2 . 4 7 4 1 . 1 3 8 9 Max Kills in Single Turn 4 | 1 2 1 . 1 1 4 1 1 . 1 3 1 1 . 1 1 1 1 . 1 2 2 1 . 1 1 3 4 Gunslinging 2 | . 1 . . . . . . . . . . . . . . . . . . . . . . . . . 2 . Exploded 3 | . . . . . . 1 . 1 . 1 3 1 . . 1 . 1 . . 1 1 . . . . . . 3 Melee 1 | . . . . . . . . . . . . . . . . . . . . . . . . . . . . 1 Uniques/NPCs Destroyed . | . . . . . . . . . . . . . . . . . . . . . . . . . . . . . Combat | -11 -10 -10 -10 -9 -8 -7 -7 -7 -7 -6 -6 -6 -6 -6 -5 -5 -5 -5 -5 -4 -4 -4 -4 -4 -4 -3 -3 -2 -------- Run | Scr Mat Min Exi Min Mat Fac Low Low Zio Pro Fac Low Low Dat Pro Fac Upp Upp Zhi Pro Fac Ext Cet Arc Hub Res Tes Res Damage Taken 33365 | . 439 446 . 66 685 1238 82 393 . 339 2369 543 61 . 96 . 165 . . 582 3483 766 136 . 25 258 5443 15750 Core 1829 | . 49 59 . 7 76 192 14 9 . 14 128 32 . . . . . . . . 274 81 . . 25 . 187 682 Absorbed by Shields 2141 | . . . . . . . . . . . . . . . . . . . . . 321 200 143 . 25 . 794 658 Reduced by Siege Mode 1437 | . . . . . . . . . . . . . . . . . . . . . 232 5 . . . . 433 767 Core Remaining (%) 79 | 100 . . . 54 86 . . . . 67 . . . . 81 . . . . 100 . . . . 66 . 85 . Volleys Fired 824 | 5 34 28 . 5 48 61 4 15 . 22 62 12 2 . 3 10 3 5 21 10 79 39 9 . 2 15 113 217 Largest 4 | 2 2 2 . 2 2 2 2 2 . 2 3 3 3 . 1 2 1 2 1 3 3 3 3 . 3 4 4 4 Hottest 331 | 90 90 71 . 71 103 110 116 116 . 91 165 148 133 . 43 106 43 162 81 123 212 195 99 . 146 227 190 331 Shots Fired 2063 | 10 68 56 . 10 93 120 8 21 . 27 145 28 6 . 3 20 3 6 21 12 230 62 23 . 4 48 387 652 Gun 1634 | 10 68 34 . 5 53 120 8 17 . 16 132 16 4 . . 10 . 2 . 3 188 43 21 . 3 33 337 511 Cannon 368 | . . 22 . 5 40 . . . . . . 8 2 . . 10 . 4 21 2 42 15 . . . 14 50 133 Launcher 61 | . . . . . . . . 4 . 11 13 4 . . 3 . 3 . . 7 . 4 2 . 1 1 . 8 Special . | . . . . . . . . . . . . . . . . . . . . . . . . . . . . . Kinetic 1235 | . 46 56 . 10 84 53 . 5 . 5 74 16 4 . . 10 . . . 2 149 32 21 . 2 22 325 319 Thermal 495 | 5 11 . . . . 8 4 6 . 11 27 6 . . . . . 5 . . 55 11 . . 1 11 55 279 Explosive 13 | . . . . . . . . 4 . . . . . . . . . . . . . . . . . 1 . 8 Electromagnetic 320 | 5 11 . . . 9 59 4 6 . 11 44 6 2 . 3 10 3 1 21 10 26 19 2 . 1 14 7 46 Robot Hit Streak 45 | 4 17 9 . 3 11 20 3 4 . 7 32 9 2 . 5 8 5 5 16 11 45 7 4 . 5 7 41 37 Robot Miss Streak 5 | 4 5 4 . 2 4 3 2 4 . 4 2 3 2 . . 3 . 1 1 1 5 3 2 . . 2 3 5 Penetration Max 2 | . . . . . . . . . . . 2 . . . . . . . . . 1 1 1 . . . 2 2 Secondary Targets 25 | . 1 . . . . 2 . . . . 3 . . . . . . . . . . 1 2 . . . 12 4 Max Gunslinging Chain 3 | . 1 . . . . 1 . . . . 1 . . . . . . . . . . 1 1 . . . 3 1 Shots Hit Robots 1518 | 4 47 28 . 5 58 93 4 15 . 20 103 16 2 . 3 13 3 5 20 6 174 45 13 . 2 25 297 517 Core Hits 724 | 3 19 19 . 3 23 51 2 11 . 14 51 9 2 . 5 4 3 3 13 7 75 22 13 . 2 9 131 230 Critical Hits 104 | . . 1 . . 4 2 . . . . 5 2 1 . . . . . . . 14 5 2 . 1 3 32 32 Critical Kills 44 | . . 1 . . . 2 . . . . 2 1 1 . . . . . . . 6 2 1 . 1 1 15 11 Critical Parts Destroyed 56 | . . . . . 4 . . . . . 3 1 . . . . . . . . 8 2 1 . . 2 17 18 Melee Attacks 105 | . 1 . . . 2 17 . . . 2 14 2 3 . . 1 . . . 3 11 2 . . . 7 15 25 Impact . | . . . . . . . . . . . . . . . . . . . . . . . . . . . . . Slashing 33 | . 1 . . . 2 17 . . . . 13 . . . . . . . . . . . . . . . . . Piercing 72 | . . . . . . . . . . 2 1 2 3 . . 1 . . . 3 11 2 . . . 7 15 25 Sneak Attacks 2 | . . . . . . 1 . . . . . . . . . . . . . . 1 . . . . . . . Combat Hostiles . | . . . . . . . . . . . . . . . . . . . . . . . . . . . . . Follow-up Attacks . | . . . . . . . . . . . . . . . . . . . . . . . . . . . . . Damage Inflicted 44459 | 100 683 612 . 79 1055 2024 76 376 . 716 2618 478 75 . 288 330 145 164 303 463 5121 1726 402 . 67 771 7999 17788 Guns 28735 | 100 683 392 . 63 490 1750 76 176 . 282 1940 71 24 . . 124 . 48 . 20 3161 935 302 . 44 321 6098 11635 Cannons 9083 | . . 214 . 16 565 . . . . . . 222 51 . . 206 . 116 303 71 1215 420 . . . 373 1874 3437 Explosions 5341 | . . . . . . 144 . 200 . 403 644 185 . . 288 . 145 . . 372 489 371 100 . 23 77 . 1900 Melee 1129 | . . . . . . 130 . . . 31 34 . . . . . . . . . 256 . . . . . . 678 Ramming 171 | . . 6 . . . . . . . . . . . . . . . . . . . . . . . . 27 138 Kinetic 20278 | . 530 606 . 79 950 653 . 38 . 90 977 71 24 . . 124 . . . . 2266 791 302 . 6 169 5769 6833 Thermal 13189 | 36 38 . . . . 290 33 70 . 192 656 168 . . 69 . . 133 . . 1430 231 . . 38 152 1963 7690 Explosive 2354 | . . . . . . . . 200 . . . . . . . . . . . . 489 . . . . 77 . 1588 Electromagnetic 7338 | 64 115 . . . 105 951 43 68 . 403 951 239 51 . 219 206 145 31 303 463 680 704 100 . 23 373 240 861 Impact . | . . . . . . . . . . . . . . . . . . . . . . . . . . . . . Slashing 164 | . . . . . . 130 . . . . 34 . . . . . . . . . . . . . . . . . Piercing 965 | . . . . . . . . . . 31 . . . . . . . . . . 256 . . . . . . 678 Highest Corruption 26 | . . 2 2 2 . . . . . 2 3 3 1 1 1 . . . . . 10 9 1 1 . . 6 26 Average Corruption 4 | . . 2 2 2 . . . . . 1 1 1 1 1 1 . . . . . 5 2 1 1 . . 2 12 Corruption Purged 42 | . . . . . . . . . . . 1 3 . . . . . . . . 5 8 . 1 . . 10 14 Effects 390 | . . 4 5 . . . . . . 3 13 21 4 1 . . . . . . 46 17 . . . . 42 234 Message Errors 73 | . . . 3 . . . . . . 1 3 7 2 . . . . . . . 10 8 . . . . 7 32 Matter Fused 44 | . . . . . . . . . . . 1 4 . . . . . . . . 6 1 . . . . 8 24 Heat Flow Errors 26 | . . 1 . . . . . . . . 1 3 . . . . . . . . 4 1 . . . . 3 13 Energy Discharges 32 | . . 1 1 . . . . . . 2 3 3 1 1 . . . . . . 4 1 . . . . . 15 Parts Rejected 3 | . . . . . . . . . . . . . . . . . . . . . . . . . . . . 3 Data Loss (minor) 32 | . . . 1 . . . . . . . 1 4 . . . . . . . . 4 2 . . . . 5 15 Data Loss (major) 7 | . . . . . . . . . . . . . . . . . . . . . 1 1 . . . . 1 4 Misfires 9 | . . . . . . . . . . . . . . . . . . . . . 1 . . . . . 1 7 Misdirections 14 | . . . . . . . . . . . . . . . . . . . . . 3 . . . . . . 11 Targeting Errors 126 | . . 2 . . . . . . . . 4 . 1 . . . . . . . 12 3 . . . . 12 92 Weapon Failures 24 | . . . . . . . . . . . . . . . . . . . . . 1 . . . . . 5 18 Overload Shots . | . . . . . . . . . . . . . . . . . . . . . . . . . . . . . Overflow Damage 652 | . . 25 . . . 58 . . . 30 . 19 1 . . . . . 33 . 18 76 . . . 43 98 251 Projectiles 402 | . . 25 . . . . . . . . . 19 1 . . . . . 33 . 18 29 . . . 7 94 176 Explosions 175 | . . . . . . . . . . 30 . . . . . . . . . . . 47 . . . 36 . 62 Melee 75 | . . . . . . 58 . . . . . . . . . . . . . . . . . . . . 4 13 Knockbacks 35 | . . 2 . . 2 . . . . . . . . . . . . . . . . . . . . . . 31 Impact 2 | . . . . . . . . . . . . . . . . . . . . . . . . . . . . 2 Kinetic 31 | . . 2 . . 2 . . . . . . . . . . . . . . . . . . . . . . 27 Secondary 2 | . . . . . . . . . . . . . . . . . . . . . . . . . . . . 2 Self-Inflicted Damage 254 | . . 3 . . . 32 . . . . . 27 . . . . . . . . 38 44 . . . . . 110 Shots 7 | . . . . . . 1 . . . . . 1 . . . . . . . . 1 1 . . . . . 3 Rammed 11 | . . 1 . . . . . . . . . . . . . . . . . . . . . . . . 3 7 Targets Rammed 11 | . . 1 . . . . . . . . . . . . . . . . . . . . . . . . 3 7 Kicked . | . . . . . . . . . . . . . . . . . . . . . . . . . . . . . Crushed . | . . . . . . . . . . . . . . . . . . . . . . . . . . . . . Highest Temperature 434 | 150 264 147 . 45 127 314 180 247 . 110 434 350 154 . 33 230 24 183 210 66 312 192 11 . 54 354 291 425 Average Temperature 106 | 78 76 43 . 22 23 89 94 124 . 43 139 134 84 . 24 81 10 85 74 33 118 55 4 . 28 121 99 140 Received Heat Transfer 4321 | . 198 174 . . 99 390 . . . 48 387 60 . . 45 . 36 . . 18 526 139 25 . 3 105 354 1714 Effects 19 | . . . . . . 1 . 1 . . 7 . . . . . . . 1 . . . . . . . . 9 Shutdowns 4 | . . . . . . . . . . . 2 . . . . . . . . . . . . . . . . 2 Energy Bleed 5 | . . . . . . 1 . 1 . . 1 . . . . . . . . . . . . . . . . 2 Interference 8 | . . . . . . . . . . . 3 . . . . . . . 1 . . . . . . . . 4 Short Circuit 1 | . . . . . . . . . . . 1 . . . . . . . . . . . . . . . . . Damage (minor) 1 | . . . . . . . . . . . . . . . . . . . . . . . . . . . . 1 Siege Activations 44 | . . . . . . . . . . . . . . . . . . . . . 11 1 . . . . 10 22 Total Turns 1130 | . . . . . . . . . . . . . . . . . . . . . 215 14 . . . . 285 616 Longest Duration 88 | . . . . . . . . . . . . . . . . . . . . . 49 14 . . . . 88 67 Robots Corrupted 9 | . . . . . . . . . . . 3 . . . . . . . 1 1 1 2 . . . . . 1 Combat Hostiles 8 | . . . . . . . . . . . 3 . . . . . . . 1 1 1 1 . . . . . 1 Parts Fried 35 | 1 . . . . 1 . 1 . . 1 9 2 . . . . . . 1 . 7 4 . . . 1 5 2 Impact Corruptions 3 | . . . . . . . . . . . . . . . . . . . . . . . . . . . 1 2 Robots Melted . | . . . . . . . . . . . . . . . . . . . . . . . . . . . . . Combat Hostiles . | . . . . . . . . . . . . . . . . . . . . . . . . . . . . . Parts Melted 28 | . . . . . . . . . . . 1 1 . . . . . . . . 3 2 . . . . 4 17 Heat Transferred 15399 | 111 111 . . . . 396 74 148 . 370 907 250 . . 50 . . 174 . . 1889 322 . . 37 185 1739 8636 Parts Sabotaged 1 | . . . . . . . . . . . . . . . . . . . . . . . . . . . . 1 Parts Stolen . | . . . . . . . . . . . . . . . . . . . . . . . . . . . . . Parts Stripped . | . . . . . . . . . . . . . . . . . . . . . . . . . . . . . Power Chain Reactions 9 | . . . . . . 1 . . . . 3 . . . 2 . . . . . . 2 . . . . . 1 Missiles Intercepted . | . . . . . . . . . . . . . . . . . . . . . . . . . . . . . Alert | -11 -10 -10 -10 -9 -8 -7 -7 -7 -7 -6 -6 -6 -6 -6 -5 -5 -5 -5 -5 -4 -4 -4 -4 -4 -4 -3 -3 -2 ------- Run | Scr Mat Min Exi Min Mat Fac Low Low Zio Pro Fac Low Low Dat Pro Fac Upp Upp Zhi Pro Fac Ext Cet Arc Hub Res Tes Res Peak Influence 1885 | 10 112 148 . 70 282 305 . . . . 198 . . . . 257 . . . . 682 977 825 582 614 321 741 1885 Initial 518 | . 6 15 . . 27 77 . . . . . . . . . 70 . . . . 50 186 518 330 204 321 67 402 Average 354 | 6 35 65 . 28 143 138 . . . . 97 . . . . 132 . . . . 227 391 718 435 422 90 355 1082 Maximum Alert Level 5 | . . . . . 1 1 . . . . 1 . . . . 1 . . . . 2 3 3 2 2 1 3 5 Low Security (%) 50 | 100 100 100 . 100 59 64 . . . . 99 . . . . 78 . . . . 63 11 . . . 96 17 . Level 1 18 | . . . . . 40 35 . . . . . . . . . 21 . . . . 6 56 . 53 40 3 40 . Level 2 13 | . . . . . . . . . . . . . . . . . . . . . 29 16 36 46 59 . 36 15 Level 3 9 | . . . . . . . . . . . . . . . . . . . . . . 15 63 . . . 5 39 Level 4 5 | . . . . . . . . . . . . . . . . . . . . . . . . . . . . 31 Level 5 1 | . . . . . . . . . . . . . . . . . . . . . . . . . . . . 8 High Security . | . . . . . . . . . . . . . . . . . . . . . . . . . . . . 3 Max Security . | . . . . . . . . . . . . . . . . . . . . . . . . . . . . . Squads Dispatched 82 | . 2 . . . . 4 . . . . 10 . . . . 2 . . . . 11 6 . . 1 5 12 29 Investigation 7 | . 1 . . . . 1 . . . . . . . . . 1 . . . . . 2 . . . 2 . . Extermination 21 | . . . . . . 2 . . . . 4 . . . . . . . . . 5 . . . . . 5 5 Reinforcement 27 | . 1 . . . . 1 . . . . 3 . . . . 1 . . . . 2 3 . . . 3 7 6 Assault 21 | . . . . . . . . . . . . . . . . . . . . . 4 1 . . 1 . . 15 Garrison 6 | . . . . . . . . . . . 3 . . . . . . . . . . . . . . . . 3 Intercept . | . . . . . . . . . . . . . . . . . . . . . . . . . . . . . Construction Impeded 9 | . . . . . . . . . . . 1 . . . . . . . . . 1 2 . . . . 1 4 Haulers Reinforced 5 | . . . . . . 1 . . . . . . . . . 1 . . . . 1 . . . . 1 . 1 Stealth | -11 -10 -10 -10 -9 -8 -7 -7 -7 -7 -6 -6 -6 -6 -6 -5 -5 -5 -5 -5 -4 -4 -4 -4 -4 -4 -3 -3 -2 --------- Run | Scr Mat Min Exi Min Mat Fac Low Low Zio Pro Fac Low Low Dat Pro Fac Upp Upp Zhi Pro Fac Ext Cet Arc Hub Res Tes Res Distress Signals 23 | . 1 . . . 1 5 . . . . . . . . . . . . . . 1 3 2 . 1 4 . 5 Communications Jammed 1 | . . . . . 1 . . . . . . . . . . . . . . . . . . . . . . . Distress Signals 1 | . . . . . 1 . . . . . . . . . . . . . . . . . . . . . . . Times Spotted 476 | . 16 15 . 3 42 32 1 6 . 10 29 8 2 . 4 5 3 2 . 9 32 35 17 2 5 8 59 131 Peak Tracking Total 15 | . 3 3 . 3 8 9 1 3 . 4 5 4 3 . 4 2 3 1 . 5 7 7 5 6 4 3 7 15 Tactical Retreats 24 | . 1 2 . . 4 1 . . . 2 3 1 1 . . . . . . 1 . 2 . . . . 2 4 Traps | -11 -10 -10 -10 -9 -8 -7 -7 -7 -7 -6 -6 -6 -6 -6 -5 -5 -5 -5 -5 -4 -4 -4 -4 -4 -4 -3 -3 -2 ------- Run | Scr Mat Min Exi Min Mat Fac Low Low Zio Pro Fac Low Low Dat Pro Fac Upp Upp Zhi Pro Fac Ext Cet Arc Hub Res Tes Res Traps Triggered 17 | . 3 . . . . 2 . . . . 3 . . . . . . . . . 2 3 . . . 1 2 1 Indirectly . | . . . . . . . . . . . . . . . . . . . . . . . . . . . . . Trap Hack Attempts . | . . . . . . . . . . . . . . . . . . . . . . . . . . . . . Triggered . | . . . . . . . . . . . . . . . . . . . . . . . . . . . . . Disarmed . | . . . . . . . . . . . . . . . . . . . . . . . . . . . . . Reprogrammed . | . . . . . . . . . . . . . . . . . . . . . . . . . . . . . Reused . | . . . . . . . . . . . . . . . . . . . . . . . . . . . . . Traps Extracted . | . . . . . . . . . . . . . . . . . . . . . . . . . . . . . Installed . | . . . . . . . . . . . . . . . . . . . . . . . . . . . . . Triggered 2 | . . . . . . . . . . . . . . . . . . . . 2 . . . . . . . . Machines | -11 -10 -10 -10 -9 -8 -7 -7 -7 -7 -6 -6 -6 -6 -6 -5 -5 -5 -5 -5 -4 -4 -4 -4 -4 -4 -3 -3 -2 ---------- Run | Scr Mat Min Exi Min Mat Fac Low Low Zio Pro Fac Low Low Dat Pro Fac Upp Upp Zhi Pro Fac Ext Cet Arc Hub Res Tes Res Machines Disabled 39 | . . 1 . . . 1 . . . . 2 . . . . 2 . . . . 6 6 2 2 2 1 10 4 Max in Single Turn 2 | . . 1 . . . 1 . . . . 1 . . . . 1 . . . . 2 1 . . . 1 1 1 Garrison Access 5 | . . . . . . 1 . . . . 1 . . . . . . . . . . . . . . 1 . 2 Energy Cycler 1 | . . . . . . . . . . . . . . . . . . . . . . 1 . . . . . . Machines Sabotaged . | . . . . . . . . . . . . . . . . . . . . . . . . . . . . . Garrisons Compromised . | . . . . . . . . . . . . . . . . . . . . . . . . . . . . . Overloaded Fab Kills . | . . . . . . . . . . . . . . . . . . . . . . . . . . . . . Fab Network Shutdowns . | . . . . . . . . . . . . . . . . . . . . . . . . . . . . . Hacking | -11 -10 -10 -10 -9 -8 -7 -7 -7 -7 -6 -6 -6 -6 -6 -5 -5 -5 -5 -5 -4 -4 -4 -4 -4 -4 -3 -3 -2 --------- Run | Scr Mat Min Exi Min Mat Fac Low Low Zio Pro Fac Low Low Dat Pro Fac Upp Upp Zhi Pro Fac Ext Cet Arc Hub Res Tes Res Machines Accessed 99 | . 8 1 1 . 7 6 . 1 . . 11 1 . 4 . 4 . . 6 . 8 15 2 . 2 4 13 5 Terminals 58 | . 8 . . . 5 3 . . . . 2 . . . . 3 . . . . 6 15 2 . 2 2 8 2 Fabricators 6 | . . . . . . . . . . . 2 . . . . . . . . . 1 . . . . . 2 1 Repair Stations 7 | . . . . . 1 1 . . . . 2 . . . . 1 . . . . 1 . . . . . 1 . Recycling Units . | . . . . . . . . . . . . . . . . . . . . . . . . . . . . . Scanalyzers 5 | . . . . . . . . . . . 2 . . . . . . . . . . . . . . 1 2 . Garrison Access 9 | . . . . . 1 2 . . . . 3 . . . . . . . . . . . . . . 1 . 2 Total Hacks 368 | . 35 1 13 . 18 18 . 1 . . 25 1 . 30 . 11 . . 19 . 38 48 10 . 7 27 49 17 Successful 217 | . 23 1 13 . 14 9 . 1 . . 11 1 . 30 . 6 . . 19 . 20 17 3 . 5 12 24 8 Failed 151 | . 12 . . . 4 9 . . . . 14 . . . . 5 . . . . 18 31 7 . 2 15 25 9 Catastrophic 25 | . 1 . . . . 1 . . . . 3 . . . . 2 . . . . 2 9 1 . . 1 4 1 Database Lockouts . | . . . . . . . . . . . . . . . . . . . . . . . . . . . . . Manual 160 | . 27 . . . 12 7 . . 1 . 3 . . . . 7 . . . . 24 42 8 . 4 5 19 1 Terminals 217 | . 35 . . . 14 11 . . . . 4 . . . . 7 . . . . 30 48 10 . 7 17 27 7 Fabricators 23 | . . . . . . . . . . . 5 . . . . . . . . . 4 . . . . . 7 7 Repair Stations 25 | . . . . . 2 3 . . . . 4 . . . . 4 . . . . 4 . . . . . 8 . Recycling Units . | . . . . . . . . . . . . . . . . . . . . . . . . . . . . . Scanalyzers 14 | . . . . . . . . . . . 6 . . . . . . . . . . . . . . 1 7 . Garrison Access 24 | . . . . . 2 4 . . . . 6 . . . . . . . . . . . . . . 9 . 3 Terminal Hacks 134 | . 15 1 13 . 6 5 . 1 . . 1 1 . 30 . . . . 19 . 9 12 1 . 1 9 9 1 Record 32 | . . . 13 . . . . . . . . . . 11 . . . . 7 . . 1 . . . . . . Part Schematic 19 | . 1 . . . 1 3 . . . . . . . 8 . . . . 4 . 1 1 . . . . . . Robot Schematic 8 | . . . . . . . . . . . . . . 8 . . . . . . . . . . . . . . Robot Analysis 7 | . 3 . . . . . . . . . . . . . . . . . 4 . . . . . . . . . Prototype ID Bank 13 | . 3 . . . 2 . . . . . . . . 3 . . . . 4 . . . . . . 1 . . Open Door 5 | . . 1 . . . . . 1 . . . 1 . . . . . . . . . 1 . . . . 1 . Level Access Points 2 | . . . . . . . . . . . 1 . . . . . . . . . . . . . . . 1 . Branch Access Points 3 | . . . . . . 1 . . . . . . . . . . . . . . 1 . . . . 1 . . Emergency Access Points 1 | . 1 . . . . . . . . . . . . . . . . . . . . . . . . . . . Terminal Index 2 | . . . . . . . . . . . . . . . . . . . . . 1 . . . . 1 . . Fabricator Index 2 | . . . . . . . . . . . . . . . . . . . . . 1 . . . . 1 . . Alert Level 6 | . 1 . . . . . . . . . . . . . . . . . . . . 2 . . . 1 2 . Unreport Threat 12 | . 1 . . . . . . . . . . . . . . . . . . . 2 3 1 . . 2 2 1 Locate Traps 11 | . 4 . . . 2 . . . . . . . . . . . . . . . 1 2 . . . 1 1 . Recall Investigation 2 | . 1 . . . . . . . . . . . . . . . . . . . . 1 . . . . . . Recall Extermination 1 | . . . . . . . . . . . . . . . . . . . . . 1 . . . . . . . Recall Reinforcements 3 | . . . . . . . . . . . . . . . . . . . . . . 1 . . . 1 1 . Recall Assault 1 | . . . . . . . . . . . . . . . . . . . . . 1 . . . . . . . Hauler Manifests 2 | . . . . . 1 . . . . . . . . . . . . . . . . . . . 1 . . . Zone Layout 2 | . . . . . . 1 . . . . . . . . . . . . . . . . . . . . 1 . Fabricator Hacks 14 | . . . . . . . . . . . 3 . . . . . . . . . 4 . . . . . 3 4 Load Schematic 7 | . . . . . . . . . . . 2 . . . . . . . . . 2 . . . . . 2 1 Build 7 | . . . . . . . . . . . 1 . . . . . . . . . 2 . . . . . 1 3 Repair Station Hacks 20 | . . . . . 2 2 . . . . 4 . . . . 4 . . . . 4 . . . . . 4 . Scan Component 10 | . . . . . 1 1 . . . . 2 . . . . 2 . . . . 2 . . . . . 2 . Repair 10 | . . . . . 1 1 . . . . 2 . . . . 2 . . . . 2 . . . . . 2 . Recycling Unit Hacks . | . . . . . . . . . . . . . . . . . . . . . . . . . . . . . Scanalyzer 8 | . . . . . . . . . . . 1 . . . . . . . . . . . . . . 1 6 . Insert Component 6 | . . . . . . . . . . . 1 . . . . . . . . . . . . . . 1 4 . Analyze 2 | . . . . . . . . . . . . . . . . . . . . . . . . . . . 2 . Garrison Access Hacks 5 | . . . . . . 1 . . . . 1 . . . . . . . . . . . . . . 1 . 2 Seal Access 5 | . . . . . . 1 . . . . 1 . . . . . . . . . . . . . . 1 . 2 Unauthorized Hacks 36 | . 8 . . . 6 1 . . . . 1 . . . . 2 . . . . 3 5 2 . 4 1 2 1 Terminals 35 | . 8 . . . 6 1 . . . . . . . . . 2 . . . . 3 5 2 . 4 1 2 1 Track 12 | . 5 . . . 3 . . . . . . . . . . . . . . . 1 1 1 . 1 . . . Assimilate 3 | . . . . . 1 . . . . . . . . . . . . . . . . 1 . . 1 . . . Botnet 18 | . 3 . . . 2 1 . . . . . . . . . 2 . . . . 2 2 . . 2 1 2 1 Disrupt 2 | . . . . . . . . . . . . . . . . . . . . . . 1 1 . . . . . Fabricators . | . . . . . . . . . . . . . . . . . . . . . . . . . . . . . Repair Stations . | . . . . . . . . . . . . . . . . . . . . . . . . . . . . . Recycling Units . | . . . . . . . . . . . . . . . . . . . . . . . . . . . . . Scanalyzers 1 | . . . . . . . . . . . 1 . . . . . . . . . . . . . . . . . Researchers 1 | . . . . . . . . . . . 1 . . . . . . . . . . . . . . . . . Garrison Access . | . . . . . . . . . . . . . . . . . . . . . . . . . . . . . Data Cores Recovered 2 | . . . . . 1 . . . . . . . . . . . . . . . . . . . 1 . . . Used 2 | . . . . . 1 . . . . . . . . . . . . . . . . . . . 1 . . . Hacking Detections 74 | . 8 . . . 6 5 . . . . 7 . . . . 3 . . . . 8 15 2 . 2 4 10 4 Full Trace Events 3 | . . . . . . 1 . . . . . . . . . 1 . . . . . 1 . . . . . . Feedback Events . | . . . . . . . . . . . . . . . . . . . . . . . . . . . . . Feedback Blocked . | . . . . . . . . . . . . . . . . . . . . . . . . . . . . . Robot Schematics Acquired 8 | . . . . . . . . . . . . . . 8 . . . . . . . . . . . . . . Robots Built . | . . . . . . . . . . . . . . . . . . . . . . . . . . . . . Matter . | . . . . . . . . . . . . . . . . . . . . . . . . . . . . . Time . | . . . . . . . . . . . . . . . . . . . . . . . . . . . . . Total Robot Build Rating . | . . . . . . . . . . . . . . . . . . . . . . . . . . . . . Part Schematics Acquired 20 | . 1 . . . 1 3 . . . . . . . 8 . . . . 4 . 1 1 . . . . 1 . Parts Built 12 | . . . . . . . . . . . 2 . . . . . . . . . 3 . . . . . 1 6 Matter 1828 | . . . . . . . . . . . 146 . . . . . . . . . 563 . . . . . 285 834 Time 610 | . . . . . . . . . . . 36 . . . . . . . . . 291 . . . . . 76 207 Total Part Build Rating 88 | . . . . . . . . . . . 6 . . . . . . . . . 23 . . . . . 5 54 Parts Repaired 10 | . . . . . 1 1 . . . . 2 . . . . 2 . . . . 2 . . . . . 2 . Time 446 | . . . . . 80 44 . . . . 41 . . . . 70 . . . . 41 . . . . . 170 . Parts Recycled . | . . . . . . . . . . . . . . . . . . . . . . . . . . . . . Recycled Matter . | . . . . . . . . . . . . . . . . . . . . . . . . . . . . . Retrieved Matter . | . . . . . . . . . . . . . . . . . . . . . . . . . . . . . Retrieved Components . | . . . . . . . . . . . . . . . . . . . . . . . . . . . . . Parts Scanalyzed 2 | . . . . . . . . . . . 1 . . . . . . . . . . . . . . . 1 . Part Schematics Acquired 1 | . . . . . . . . . . . . . . . . . . . . . . . . . . . 1 . Parts Damaged 1 | . . . . . . . . . . . . . . . . . . . . . . . . . . . 1 . Bothacking | -11 -10 -10 -10 -9 -8 -7 -7 -7 -7 -6 -6 -6 -6 -6 -5 -5 -5 -5 -5 -4 -4 -4 -4 -4 -4 -3 -3 -2 ------------ Run | Scr Mat Min Exi Min Mat Fac Low Low Zio Pro Fac Low Low Dat Pro Fac Upp Upp Zhi Pro Fac Ext Cet Arc Hub Res Tes Res Used RIF Installer . | . . . . . . . . . . . . . . . . . . . . . . . . . . . . . Robots Hacked . | . . . . . . . . . . . . . . . . . . . . . . . . . . . . . Non-combat . | . . . . . . . . . . . . . . . . . . . . . . . . . . . . . Combat . | . . . . . . . . . . . . . . . . . . . . . . . . . . . . . Robot Hacks Applied . | . . . . . . . . . . . . . . . . . . . . . . . . . . . . . Relay Couplers Released . | . . . . . . . . . . . . . . . . . . . . . . . . . . . . . Robots Rewired 9 | . . . . . . . . . . . . . . . . . . . . . . 9 . . . . . . Allies Hacked . | . . . . . . . . . . . . . . . . . . . . . . . . . . . . . Hacks Repelled . | . . . . . . . . . . . . . . . . . . . . . . . . . . . . . Allies | -11 -10 -10 -10 -9 -8 -7 -7 -7 -7 -6 -6 -6 -6 -6 -5 -5 -5 -5 -5 -4 -4 -4 -4 -4 -4 -3 -3 -2 -------- Run | Scr Mat Min Exi Min Mat Fac Low Low Zio Pro Fac Low Low Dat Pro Fac Upp Upp Zhi Pro Fac Ext Cet Arc Hub Res Tes Res Total Allies 36 | . . 2 . . 1 . . . 3 . . . . . 1 . . . . . . 24 5 . . . . . Largest Group 15 | . . 2 1 . 1 . . . 3 3 . . . . 1 1 1 1 1 1 . 15 15 8 5 4 3 . Highest-Rated Group 789 | . . 42 31 . 10 . . . 54 54 . . . . 94 94 94 94 94 94 . 789 789 702 470 365 277 . Highest-Rated Ally 156 | . . 31 31 . 10 . . . 20 20 . . . . 94 94 94 94 94 94 . 156 156 147 94 94 94 . Total Orders 9 | . . . . . 2 . . . . . 1 . . . . 1 . . . . . . . . 1 2 2 . STAY 2 | . . . . . . . . . . . . . . . . . . . . . . . . . . 1 1 . FOLLOW 2 | . . . . . . . . . . . . . . . . . . . . . . . . . . 1 1 . EXPLORE 5 | . . . . . 2 . . . . . 1 . . . . 1 . . . . . . . . 1 . . . Ally Attacks 483 | . . 12 . . 3 . . . . 17 1 . . . 3 15 4 5 . 11 . 174 103 38 39 14 44 . Total Damage 14115 | . . 185 . . . . . . . 395 . . . . 141 453 181 62 . 469 . 4358 2860 1560 1389 565 1497 . Kills 94 | . . 3 . . . . . . . 2 . . . . 2 4 2 . . 3 . 38 16 7 7 2 8 . Allies Corrupted 1 | . . . . . . . . . . 1 . . . . . . . . . . . . . . . . . . Allies Melted . | . . . . . . . . . . . . . . . . . . . . . . . . . . . . . Intel | -11 -10 -10 -10 -9 -8 -7 -7 -7 -7 -6 -6 -6 -6 -6 -5 -5 -5 -5 -5 -4 -4 -4 -4 -4 -4 -3 -3 -2 ------- Run | Scr Mat Min Exi Min Mat Fac Low Low Zio Pro Fac Low Low Dat Pro Fac Upp Upp Zhi Pro Fac Ext Cet Arc Hub Res Tes Res Robot Analysis Total 7 | . 3 . . . . . . . . . . . . . . . . . 4 . . . . . . . . . Derelict Logs Recovered 11 | . . 1 . . . . 1 1 1 1 . 1 1 . 1 . 1 1 . 1 . . . . . . . . Drone Launches 5 | . . . . . 2 . . . . . 1 . . . . 1 . . . . . . . . 1 . . . Drone Recoveries 4 | . . . . . 2 . . . . . . . . . . 1 . . . . . . . . 1 . . . Exploration | -11 -10 -10 -10 -9 -8 -7 -7 -7 -7 -6 -6 -6 -6 -6 -5 -5 -5 -5 -5 -4 -4 -4 -4 -4 -4 -3 -3 -2 ------------- Run | Scr Mat Min Exi Min Mat Fac Low Low Zio Pro Fac Low Low Dat Pro Fac Upp Upp Zhi Pro Fac Ext Cet Arc Hub Res Tes Res Turns Passed 28457 | 35 1093 952 539 46 1241 1880 838 799 1033 867 2254 2551 665 125 639 415 669 601 385 605 2095 1384 265 89 267 700 2309 3116 Spaces Moved 14435 | 16 726 562 360 18 557 1029 548 520 725 532 1200 834 380 89 412 211 431 409 223 371 903 734 142 42 142 373 883 1063 Core . | . . . . . . . . . . . . . . . . . . . . . . . . . . . . . Treads 2840 | . . . . . 20 2 . . . . 81 . . . . . . . . . 183 6 45 42 142 373 883 1063 Legs 8 | 8 . . . . . . . . . . . . . . . . . . . . . . . . . . . . Wheels 11587 | 8 726 562 360 18 537 1027 548 520 725 532 1119 834 380 89 412 211 431 409 223 371 720 728 97 . . . . . Hover . | . . . . . . . . . . . . . . . . . . . . . . . . . . . . . Flight . | . . . . . . . . . . . . . . . . . . . . . . . . . . . . . Fastest Speed 80 | 90 80 150 150 150 130 140 140 140 140 140 140 130 140 140 140 140 140 140 140 140 140 120 150 158 158 158 150 152 Average Speed 147 | 105 124 150 150 150 157 140 140 140 140 141 148 139 140 140 140 140 140 140 140 140 152 147 152 158 158 158 158 175 Slowest Speed 290 | 120 150 150 150 150 220 290 150 150 140 150 280 140 140 140 140 140 150 140 140 140 200 185 177 158 158 158 245 195 Overloaded Moves . | . . . . . . . . . . . . . . . . . . . . . . . . . . . . . Propulsion Burnouts . | . . . . . . . . . . . . . . . . . . . . . . . . . . . . . Robots Hopped . | . . . . . . . . . . . . . . . . . . . . . . . . . . . . . Cave-ins Triggered 1 | . . . . . . . . . . . . . . . . . . . . . . . . . . . 1 . Teleports 1 | . . . . . . . . . . . . . . . . . . . . . . . . . . . . 1 Exploration Rate (%) 54 | 3 93 98 83 9 54 30 66 67 84 68 31 79 58 72 66 7 59 59 61 56 22 82 56 64 19 11 83 28 Regions Visited 28 Branch Regions 20 Pre-discovered Areas 11 | . . 1 1 . . . . . 4 . . 1 . 1 . . . . 3 . . . . . . . . . Known Exits Taken 22 | . . . . . . 1 1 1 1 1 1 1 1 1 1 1 1 1 1 1 1 1 1 1 1 1 1 . Unknown Exits Taken 6 | 1 1 1 1 1 1 . . . . . . . . . . . . . . . . . . . . . . . Scrap Searched 18 | . . 1 . . . . 3 2 . 4 . 1 . . 1 . 1 1 . 4 . . . . . . . . Spaces Dug 67 | . 1 . . . 2 14 . . . . 10 1 3 . . 1 . . . 2 6 . . . . 14 8 5 Terrain Destroyed 459 | . 1 9 . 3 21 17 . 17 . . 31 2 3 . 10 1 . 1 . 2 143 8 1 . . 16 17 156 Melee 60 | . 1 . . . 2 14 . . . . 10 1 3 . . 1 . . . 2 6 . . . . 7 8 5 Projectile 151 | . . 9 . 3 19 . . . . . 1 1 . . . . . 1 . . 27 2 1 . . 2 9 76 AOE 248 | . . . . . . 3 . 17 . . 20 . . . 10 . . . . . 110 6 . . . 7 . 75 Terrain Rammed . | . . . . . . . . . . . . . . . . . . . . . . . . . . . . . Walls Destroyed . | . . . . . . . . . . . . . . . . . . . . . . . . . . . . . Machines Disabled . | . . . . . . . . . . . . . . . . . . . . . . . . . . . . . Actions | -11 -10 -10 -10 -9 -8 -7 -7 -7 -7 -6 -6 -6 -6 -6 -5 -5 -5 -5 -5 -4 -4 -4 -4 -4 -4 -3 -3 -2 --------- Run | Scr Mat Min Exi Min Mat Fac Low Low Zio Pro Fac Low Low Dat Pro Fac Upp Upp Zhi Pro Fac Ext Cet Arc Hub Res Tes Res Total 19820 | 23 851 617 362 27 839 1327 608 571 743 616 1536 2190 503 89 468 312 485 428 275 440 1427 971 173 64 180 437 1471 1787 Wait 3233 | . 41 9 1 5 139 136 53 20 12 29 104 1302 115 . 48 65 41 5 21 31 338 71 2 21 12 14 310 288 Move 14407 | 15 725 561 359 17 556 1028 547 519 724 531 1199 833 379 88 411 210 430 408 222 370 902 733 141 41 141 372 882 1063 Hop . | . . . . . . . . . . . . . . . . . . . . . . . . . . . . . Pick Up 237 | . 20 6 1 . 34 21 1 6 1 7 35 4 . . . 5 . 1 3 4 20 10 6 . 4 6 12 30 Fast Attach 109 | 2 6 3 . . 4 7 . . 2 1 12 9 . . . 4 1 . 2 1 10 1 2 . 1 5 17 19 Attach 112 | . 1 2 . . 8 6 1 2 . . 19 1 . . . 2 . . 1 2 10 9 . . 1 2 6 39 Detach 29 | . 1 . . . 4 1 . . . . 3 . . . . 1 . . . 1 2 2 1 . . . 7 6 Swap 441 | . 7 . . . 15 30 2 5 1 15 45 15 4 1 6 8 9 8 1 12 38 33 5 2 12 10 86 71 Drop 241 | 1 15 7 1 . 29 20 . 4 3 9 35 12 . . . 6 1 1 4 6 17 8 7 . 7 6 20 22 Fire 824 | 5 34 28 . 5 48 61 4 15 . 22 62 12 2 . 3 10 3 5 21 10 79 39 9 . 2 15 113 217 Melee 105 | . 1 . . . 2 17 . . . 2 14 2 3 . . 1 . . . 3 11 2 . . . 7 15 25 Ram 1 | . . 1 . . . . . . . . . . . . . . . . . . . . . . . . . . Kick . | . . . . . . . . . . . . . . . . . . . . . . . . . . . . . Crush 10 | . . . . . . . . . . . . . . . . . . . . . . . . . . . 3 7 Escape Stasis 24 | . . . . . . . . . . . 8 . . . . . . . . . . 16 . . . . . . Rewire 47 | . . . . . . . . . . . . . . . . . . . . . . 47 . . . . . . Trap . | . . . . . . . . . . . . . . . . . . . . . . . . . . . . . Miscellaneous . | . . . . . . . . . . . . . . . . . . . . . . . . . . . . . Route ------- -11/Scrapyard -10/Materials (discovered 4 exits: [*Mat x3] / *Min) -10/Mines (discovered 3 exits: [*Mat x2] / *Exi) -10/Exiles -9/Mines -8/Materials (discovered 2 exits: *Fac / [*Sto]) -7/Factory (discovered 3 exits: Fac / *Low x2) -7/Lower Caves -7/Lower Caves (discovered 2 exits: *Fac / *Zio) -7/Zion -6/Proximity Caves -6/Factory (discovered 5 exits: *Fac x4 / *Low) -6/Lower Caves -6/Lower Caves (discovered 2 exits: *Fac / *Dat) -6/Data Miner -5/Proximity Caves -5/Factory -5/Upper Caves -5/Upper Caves -5/Zhirov -4/Proximity Caves -4/Factory (discovered 6 exits: *Res x2 / Upp x2 / *Ext x2) -4/Extension (discovered 2 exits: *Res / *Cet) -4/Cetus (discovered 2 exits: *Res / *Arc) -4/Archives -4/Hub_04(d) (discovered 3 exits: *Res x3) -3/Research (discovered 4 exits: Res / Arm / *Tes x2) -3/Testing -2/Research History --------- Turn | Location | Event 1 | -11/Scrapyard | Discovered new exit (range 3) 36 | -11/Scrapyard | Entered Materials 99 | -10/Materials | Discovered new exit (range 10) 310 | -10/Materials | Build established: Mutant 397 | -10/Materials | Discovered new exit (range 8) 745 | -10/Materials | Discovered new exit (range 16) 754 | -10/Materials | Build established: Hauler-Mutant 1091 | -10/Materials | Discovered new exit (range 16) 1129 | -10/Materials | Entered Mines 1137 | -10/Mines | Learned Materials garrison access intel 1291 | -10/Mines | Found the Drone Emporium 1298 | -10/Mines | Found Prototype Device 1317 | -10/Mines | Discovered new exit (range 10) 1318 | -10/Mines | Learned location of Storage (-8) 1333 | -10/Mines | A weapon hastily lodged in a ceiling crevice suddenly fell to the ground 1999 | -10/Mines | Discovered new exit (range 7) 2008 | -10/Mines | Found a damaged Exp. Sensor Array with a note attached 2013 | -10/Mines | Found Prototype Device 2074 | -10/Mines | Deemed a non-threat by the Exiles lab entrance 2075 | -10/Mines | Discovered new exit (range 5) 2081 | -10/Mines | Entered Exiles 2081 | -10/Exiles | Accompanied by 1 ally 2111 | -10/Exiles | Led the pair of lost Derelicts to a safe place 2116 | -10/Exiles | Met 8R-AWN 2143 | -10/Exiles | Met EX-HEX 2213 | -10/Exiles | Met EX-DEC 2247 | -10/Exiles | Visited The Gauntlet 2420 | -10/Exiles | Learned location of Zion (-7) 2459 | -10/Exiles | Met EX-BIN 2608 | -10/Exiles | Discovered new exit (range 10) 2620 | -10/Exiles | Entered Mines 2634 | -9/Mines | Discovered new exit (range 8) 2666 | -9/Mines | Entered Materials 2666 | -8/Materials | Evolved 4 slots: Propulsion x1, Utility x3 2666 | -8/Materials | Identified Exp. Sensor Array 2667 | -8/Materials | Loaded intel: 1 garrison access location 2667 | -8/Materials | Identified Thief Drone Bay 2686 | -8/Materials | Discovered new exit (range 10) 3339 | -8/Materials | Discovered new exit (range 8) 3816 | -8/Materials | Repaired Exp. Sensor Array 3907 | -8/Materials | Entered Factory 3907 | -7/Factory | Evolved 2 slots: Propulsion x1, Utility x1 5194 | -7/Factory | Repaired Arm. Huge Wheel 5560 | -7/Factory | Identified exit to Lower Caves 5560 | -7/Factory | Discovered new exit (range 12) 5787 | -7/Factory | Entered Lower Caves 5788 | -7/Lower Caves | Encountered a Warlord checkpoint 6607 | -7/Lower Caves | Learned Factory security intel 6610 | -7/Lower Caves | Discovered new exit (range 11) 6624 | -7/Lower Caves | Identified exit to Lower Caves 6625 | -7/Lower Caves | Entered another Lower Caves area 6722 | -7/Lower Caves | Discovered new exit (range 4) 6723 | -7/Lower Caves | Encountered a Warlord checkpoint 6726 | -7/Lower Caves | Identified exit to Factory 7252 | -7/Lower Caves | Discovered new exit (range 6) 7423 | -7/Lower Caves | Identified exit to Zion 7424 | -7/Lower Caves | Entered Zion 7505 | -7/Zion | Given A8's code to call for help 7662 | -7/Zion | Gained Derelict followers 7706 | -7/Zion | Received a visual enhancement algorithm 7835 | -7/Zion | Learned location of Armory (-3) 7841 | -7/Zion | Given the Hacking Drone Bay 7841 | -7/Zion | Found Prototype Device 7841 | -7/Zion | Identified Hacking Drone Bay 7897 | -7/Zion | Found CR-A16's Pointy Stick 8159 | -7/Zion | Learned location of Data Miner (-6) 8300 | -7/Zion | Learned location of Extension (-4) 8425 | -7/Zion | Discovered new exit (range 13) 8441 | -7/Zion | Identified exit to Proximity Caves 8457 | -7/Zion | Entered Proximity Caves 8457 | -6/Proximity Caves | Accompanied by 3 allies 8604 | -6/Proximity Caves | Spotted B-75 Beast 8608 | -6/Proximity Caves | Revealed the true nature of CR-A16's Pointy Stick 8611 | -6/Proximity Caves | Destroyed B-75 Beast 9164 | -6/Proximity Caves | Attracted the attention of an 0b10 checkpoint 9249 | -6/Proximity Caves | Learned location of 1 exit from Factory 9300 | -6/Proximity Caves | Discovered exit to Factory (range 6) 9324 | -6/Proximity Caves | Entered Factory 9324 | -6/Factory | Evolved 2 slots: Utility x1, Weapon x1 9325 | -6/Factory | Identified exit to Factory 9341 | -6/Factory | Spotted B-75 Beast 9344 | -6/Factory | Destroyed B-75 Beast 9931 | -6/Factory | Build established: Hauler-Assassin 10105 | -6/Factory | Garrison activated, responded to threat 10426 | -6/Factory | Lost 4 parts (1p1n2w) 10489 | -6/Factory | Build established: Hauler-Mutant 10630 | -6/Factory | Fabricated Adv. Signal Interpreter? 11239 | -6/Factory | Repaired Arm. Huge Wheel 11283 | -6/Factory | Build established: Hauler-Skirmisher 11441 | -6/Factory | Repaired Adv. Terrain Scanner 11563 | -6/Factory | Discovered new exit (range 5) 11571 | -6/Factory | Identified exit to Lower Caves 11578 | -6/Factory | Entered Lower Caves 11892 | -6/Lower Caves | Build established: Hauler-Gunner 13140 | -6/Lower Caves | Attracted the attention of an 0b10 checkpoint 13174 | -6/Lower Caves | Encountered a Warlord checkpoint 13398 | -6/Lower Caves | Build established: Hauler-Skirmisher 13430 | -6/Lower Caves | Found Alien Artifact 13430 | -6/Lower Caves | Identified Core Expander 13430 | -6/Lower Caves | Installed Core Expander, added new Propulsion slot 13725 | -6/Lower Caves | Build established: Hauler-Mutant 13893 | -6/Lower Caves | Spotted B-75 Beast 13922 | -6/Lower Caves | Destroyed B-75 Beast 14041 | -6/Lower Caves | Discovered new exit (range 11) 14128 | -6/Lower Caves | Identified exit to Lower Caves 14129 | -6/Lower Caves | Entered another Lower Caves area 14151 | -6/Lower Caves | Discovered exit to Factory (range 9) 14457 | -6/Lower Caves | Learned Factory stockpile data 14493 | -6/Lower Caves | Encountered a Warlord checkpoint 14728 | -6/Lower Caves | Discovered new exit (range 13) 14750 | -6/Lower Caves | Identified exit to Data Miner 14794 | -6/Lower Caves | Entered Data Miner 14794 | -6/Data Miner | Discovered new exit (range 6) 14801 | -6/Data Miner | Identified exit to Proximity Caves 14821 | -6/Data Miner | Met Data Miner 14857 | -6/Data Miner | Learned location of Section 7 (-2) 14857 | -6/Data Miner | Acquired the access code to Warlord's prototype stash 14881 | -6/Data Miner | Received God Mode back door access code from Data Miner 14919 | -6/Data Miner | Entered Proximity Caves 14947 | -5/Proximity Caves | Build established: Hauler-Skirmisher 15325 | -5/Proximity Caves | Escorted by Enhanced Grunt 15558 | -5/Proximity Caves | Entered Factory 15558 | -5/Factory | Accompanied by 1 ally 15558 | -5/Factory | Evolved 2 slots: Utility x2 15559 | -5/Factory | Identified exit to Upper Caves 15659 | -5/Factory | Repaired Hcp. Storage Unit 15704 | -5/Factory | Repaired Arm. Huge Wheel 15973 | -5/Factory | Entered Upper Caves 15973 | -5/Upper Caves | Accompanied by 1 ally 16050 | -5/Upper Caves | Attracted the attention of an 0b10 checkpoint 16266 | -5/Upper Caves | Learned Factory security intel 16324 | -5/Upper Caves | Build established: Hacker-Mutant 16575 | -5/Upper Caves | Discovered new exit (range 14) 16591 | -5/Upper Caves | Identified exit to Upper Caves 16642 | -5/Upper Caves | Entered another Upper Caves area 16642 | -5/Upper Caves | Accompanied by 1 ally 16876 | -5/Upper Caves | Learned location of 1 exit from Factory 17020 | -5/Upper Caves | Attracted the attention of an 0b10 checkpoint 17159 | -5/Upper Caves | Discovered new exit (range 14) 17213 | -5/Upper Caves | Identified exit to Zhirov 17243 | -5/Upper Caves | Entered Zhirov 17243 | -5/Zhirov | Accompanied by 1 ally 17243 | -5/Zhirov | Discovered new exit (range 3) 17245 | -5/Zhirov | Identified exit to Proximity Caves 17304 | -5/Zhirov | Learned location of Quarantine (-2) 17304 | -5/Zhirov | Learned location of Testing (-3) 17304 | -5/Zhirov | Learned location of Command (-1) 17345 | -5/Zhirov | Found Alien Artifact 17345 | -5/Zhirov | Identified Integrated Reactor 17345 | -5/Zhirov | Installed Integrated Reactor, increased core energy generation (+10) 17497 | -5/Zhirov | Found Alien Artifact 17628 | -5/Zhirov | Entered Proximity Caves 17628 | -4/Proximity Caves | Accompanied by 1 ally 17795 | -4/Proximity Caves | Spotted B-86 Titan 17845 | -4/Proximity Caves | Destroyed B-86 Titan 17928 | -4/Proximity Caves | Learned 12 Research zone layouts 18133 | -4/Proximity Caves | Build established: Hacker-Assassin 18146 | -4/Proximity Caves | Discovered new exit (range 13) 18232 | -4/Proximity Caves | Identified exit to Factory 18233 | -4/Proximity Caves | Entered Factory 18233 | -4/Factory | Evolved 2 slots: Utility x2 18234 | -4/Factory | Identified exit to Research 18386 | -4/Factory | Identified exit to Upper Caves 18386 | -4/Factory | Identified exit to Extension 18419 | -4/Factory | Spotted B-86 Titan 18422 | -4/Factory | Destroyed B-86 Titan 18690 | -4/Factory | Repaired Adv. Sensor Array 18715 | -4/Factory | Repaired Arm. Huge Wheel 19319 | -4/Factory | Discovered exit to Research (range 4) 19580 | -4/Factory | System corruption reached 10% 19733 | -4/Factory | First assault squad dispatched 19758 | -4/Factory | Incoming assault squad redirected 19989 | -4/Factory | Fabricated Exp. Sensor Array (x1) 20124 | -4/Factory | Build established: Hacker-Skirmisher 20128 | -4/Factory | Fabricated Biometal Heavy Treads (x2) 20202 | -4/Factory | Lost 3 parts (2u1w) 20210 | -4/Factory | Destroyed 7 combat bots 20286 | -4/Factory | Incoming assault squad redirected 20328 | -4/Factory | Entered Extension 20395 | -4/Extension | Rescued a captive Derelict 20395 | -4/Extension | Rescued a captive Derelict 20485 | -4/Extension | Rescued a captive Derelict 20485 | -4/Extension | Rescued a captive Derelict 20548 | -4/Extension | Incoming investigation squad redirected 20606 | -4/Extension | Rescued a captive Derelict 20606 | -4/Extension | Rescued a captive Derelict 20656 | -4/Extension | Rescued a captive Derelict 20670 | -4/Extension | Rescued a captive Derelict 21010 | -4/Extension | Build established: Hacker-Mutant 21032 | -4/Extension | Spotted B-86 Titan 21039 | -4/Extension | Spotted B-86 Titan 21045 | -4/Extension | Destroyed B-86 Titan 21055 | -4/Extension | Destroyed B-86 Titan 21155 | -4/Extension | Rescued a captive Derelict 21156 | -4/Extension | Rescued a captive Derelict 21224 | -4/Extension | Rescued A7 21271 | -4/Extension | Energy Cycler disabled 21271 | -4/Extension | Rescued a captive Derelict 21271 | -4/Extension | Rescued a captive Derelict 21272 | -4/Extension | Rescued a captive Derelict 21272 | -4/Extension | Rescued a captive Derelict 21273 | -4/Extension | Rescued a captive Derelict 21288 | -4/Extension | Rescued a captive Derelict 21328 | -4/Extension | First assault squad dispatched 21379 | -4/Extension | Incoming assault squad redirected 21478 | -4/Extension | Disrupted transfer network 21682 | -4/Extension | Discovered exit to Research (range 10) 21684 | -4/Extension | Discovered new exit (range 6) 21708 | -4/Extension | Identified exit to Cetus 21712 | -4/Extension | Entered Cetus 21712 | -4/Cetus | Accompanied by 15 allies (A7) 21717 | -4/Cetus | Acquired a Cetus Manufacturing Module code from A7 21733 | -4/Cetus | Spotted Cetus Guard 21733 | -4/Cetus | Spotted Cetus Guard 21734 | -4/Cetus | Spotted Cetus Guard 21734 | -4/Cetus | Spotted Cetus Guard 21743 | -4/Cetus | Allies destroyed Cetus Guard 21743 | -4/Cetus | Allies destroyed Cetus Guard 21746 | -4/Cetus | Allies destroyed Cetus Guard 21746 | -4/Cetus | Allies destroyed Cetus Guard 21811 | -4/Cetus | Started Cetus Manufacturing Module 21836 | -4/Cetus | Manufactured an Enhanced Grunt 21843 | -4/Cetus | Discovered new exit (range 15) 21861 | -4/Cetus | Manufactured an Enhanced Grunt 21871 | -4/Cetus | Spotted Cetus Guard 21872 | -4/Cetus | Allies destroyed Cetus Guard 21873 | -4/Cetus | Spotted Cetus Guard 21873 | -4/Cetus | Spotted Cetus Guard 21876 | -4/Cetus | Spotted Cetus Guard 21882 | -4/Cetus | Allies destroyed Cetus Guard 21885 | -4/Cetus | Discovered exit to Research (range 16) 21886 | -4/Cetus | Manufactured an Enhanced Grunt 21891 | -4/Cetus | Destroyed Cetus Guard 21892 | -4/Cetus | Allies destroyed Cetus Guard 21903 | -4/Cetus | Met Revision 17 21911 | -4/Cetus | Manufactured an Enhanced Grunt 21936 | -4/Cetus | Manufactured an Enhanced Grunt 21971 | -4/Cetus | Identified exit to Archives 21977 | -4/Cetus | Entered Archives 21977 | -4/Archives | Accompanied by 8 allies (A7) 22001 | -4/Archives | Met Zhirov 22007 | -4/Archives | Reinforcements dispatched to Archives 22017 | -4/Archives | Discovered new exit (range 15) 22039 | -4/Archives | Identified exit to Hub_04(d) 22052 | -4/Archives | Reinforcements dispatched to Archives 22066 | -4/Archives | Entered Hub_04(d) 22066 | -4/Hub_04(d) | Accompanied by 5 allies 22069 | -4/Hub_04(d) | Discovered exit to Research (range 10) 22278 | -4/Hub_04(d) | Discovered exit to Research (range 13) 22314 | -4/Hub_04(d) | Discovered exit to Research (range 8) 22316 | -4/Hub_04(d) | First assault squad dispatched 22333 | -4/Hub_04(d) | Entered Research 22333 | -3/Research | Accompanied by 4 allies 22333 | -3/Research | Evolved 2 slots: Utility x1, Weapon x1 22334 | -3/Research | Identified exit to Research 22356 | -3/Research | Identified exit to Armory 22356 | -3/Research | Identified exit to Testing 22533 | -3/Research | Revision forces began assault on 0b10 22598 | -3/Research | Met up with Revision 17++ 22823 | -3/Research | Identified Transdimensional Reconstructor 23033 | -3/Research | Research terminal network offline 23033 | -3/Research | Entered Testing 23033 | -3/Testing | Accompanied by 3 allies 23336 | -3/Testing | Fabricated Exp. Terrain Scanner? 23425 | -3/Testing | Repaired Centrium Medium Armor Plating 23487 | -3/Testing | Repaired Adv. Focal Shield 23718 | -3/Testing | Found Prototype Device 23718 | -3/Testing | Identified Exp. Thermal Shield 23931 | -3/Testing | Crushed by falling debris 23942 | -3/Testing | Found Prototype Hackware 24052 | -3/Testing | Found Prototype Hackware 24052 | -3/Testing | Identified Ghost Barrier 24207 | -3/Testing | Destroyed 8 combat bots 24247 | -3/Testing | Found Prototype Energy Cannon 24247 | -3/Testing | Identified Cld. Nova Cannon 24853 | -3/Testing | Destroyed 8 combat bots 24912 | -3/Testing | Found Prototype Protection 24912 | -3/Testing | Identified SHELL Armor 24919 | -3/Testing | Found Prototype Protection 24942 | -3/Testing | Identified System Mapper 24942 | -3/Testing | Identified Med. Regenerative Plating 24984 | -3/Testing | Found Prototype Processor 25002 | -3/Testing | Identified Exp. Melee Analysis Suite 25133 | -3/Testing | Scanned by Researcher 25342 | -3/Testing | Entered Research 25342 | -2/Research | Evolved 2 slots: Utility x2 25438 | -2/Research | Garrison activated, responded to threat 25699 | -2/Research | Fabricated Biometal Heavy Treads? 25873 | -2/Research | Destroyed 8 combat bots 26010 | -2/Research | Fabricated Biometal Heavy Treads? 26092 | -2/Research | First assault squad dispatched 26112 | -2/Research | Incoming assault squad redirected 26144 | -2/Research | Fabricated Biometal Heavy Treads? 26185 | -2/Research | Warped through subspace 26197 | -2/Research | Found Prototype Hackware 26214 | -2/Research | Incoming assault squad redirected 26369 | -2/Research | Incoming assault squad redirected 26370 | -2/Research | Incoming assault squad redirected 26371 | -2/Research | System corruption reached 10% 26409 | -2/Research | Lost 5 parts (1n1u3w) 26486 | -2/Research | Lost 5 parts (2u3w) 26609 | -2/Research | Incoming assault squad redirected 26819 | -2/Research | Identified Exp. Hacking Suite 26862 | -2/Research | Incoming assault squad redirected 26938 | -2/Research | Incoming assault squad redirected 27118 | -2/Research | Incoming assault squad redirected 27149 | -2/Research | Build established: Wizard-Skirmisher 27369 | -2/Research | Incoming assault squad redirected 27679 | -2/Research | Spotted B-90 Cyclops 27701 | -2/Research | Destroyed B-90 Cyclops 27757 | -2/Research | Lost 4 parts (2u2w) 27763 | -2/Research | Destroyed 8 combat bots 28059 | -2/Research | Lost 4 parts (2n1u1w) 28114 | -2/Research | Incoming assault squad redirected 28262 | -2/Research | Garrison activated, responded to threat 28269 | -2/Research | Build established: Hacker-Tank 28334 | -2/Research | High security lockdown imminent 28380 | -2/Research | Lost 5 parts (2u3w) 28385 | -2/Research | Destroyed 9 combat bots 28411 | -2/Research | Core integrity fell below 50% 28414 | -2/Research | High security lockdown engaged 28458 | -2/Research | Self-destructed Last Messages --------------- 28430_ System corrupted: CR-A16's Behemoth Slayer targeting data glitched. 28431_ 1OO#VITGXY#CGHAGE9%%1S| F# 28433_ Activated siege mode. 28434_ ALERT: Assault forces dispatched. 28435_ L-61 Swordsman destroyed. 28440_ System corrupted: CR-A16's Behemoth Slayer targeting data glitched. 28442_ System Mapper destroyed. 28442_ System corrupted by crushing effect (+3). 28443_ System corrupted: CR-A16's Behemoth Slayer targeting data glitched. 28446_ WVGBKM:R1BCHAPK>O6XSV 3 28448_ B-74 Champion destroyed. 28452_ C-30 ARC bursts open, deploying its payload. 28452_ G-73 Enforcer unfolds itself. 28452_ L-61 Swordsman unfolds itself. 28453_ System corrupted: CR-A16's Behemoth Slayer targeting data glitched. 28453_ G-73 Enforcer suffers critical hit. 28453_ G-73 Enforcer destroyed. 28457_ C-30 ARC bursts open, deploying its payload. 28457_ B-74 Champion unfolds itself. 28457_ M-36 Artificer unfolds itself. Map ----- +----------------------------------------------------+ | "Y" # ####################?????????????#/#??? | | # #????????? #????????????????? ??? | | + #??????# #????????????????? ??? | | # #??????#"" #?????????????????] ??? | | | # #?###??#"" #????????????????? ??? | | ?# ###""###"T #???????????????? ?? | | ?# #"" #???????????????? ?? | | ##+#??# ==#"" #????????????????#####?? | | ??????# *= !=* #??????????????????????? | | ??????# =%=%%!*/ #??????????????????????? | | ??????#######" %==#!! = #??????????????????????? | | ????????????## %!#!! #??????????????????????? | | ????########## %%#########??????????????????????? | | ? == #???????????????????????? | | ? ##??????????????????????? | | ? +??????????????????????? | | ?? % g "#??????????????????????? | | ??#+###########"#"###b ##???????#??????????????? | | ????????????? " ?#b #?????? ???????????????? | | ??????????? ?# g ######+### ??????????? | | ?????????? # ??????????? | | ???????? # l ?????????? | | ??????? # l= ?????????? | | ?????? ? # !e= ?????????? | | ??????#?#####"###"######b############????????????? | | ????????????##???### /%@ #???????????????????? | | ???????????????????# =* #???????????????????? | | ???????????????????# #???????????????????? | | ???????????????????# """ #???????????????????? | | ???????????????????# """ #???????????????????? | | ???????????????????# """ #???????????????????? | | ???????????????????# #???????????????????? | | ???????????????????# #???????????????????? | | ???????????????????###########???????????????????? | | ?????????????????????????????????????????????????? | | ?????????????????????????????????????????????????? | | ?????????????????????????????????????????????????? | | ?????????????????????????????????????????????????? | | ?????????????????????????????????????????????????? | | ?????????????????????????????????????????????????? | | ?????????????????????????????????????????????????? | | ?????????????????????????????????????????????????? | | ?????????????????????????????????????????????????? | | ?????????????????????????????????????????????????? | | ?????????????????????????????????????????????????? | | ?????????????????????????????????????????????????? | | | | | | | | | +----------------------------------------------------+ Best States ------------- Heat Dissipation 106 Coolant Potential 100 Energy Generation 33 Energy Capacity 940 Matter Stores 472 Matter Capacity 500 Sight Range 16 Robot Scan Range 30 Terrain Scan Range 30 Terrain Scan Density 10 Jamming Range 8 Armor Coverage 2250 Resistance: KI 30 Resistance: TH 30 Weapon Cycling 25 Melee Speed Boost 20 Phase Shifting 15 Evasion (%) 52 Recoil Reduction 5 Matter Filtering 50 Offensive Hacking 44 Defensive Hacking 31 Item Schematics ----------------- Hcp. Storage Unit | -10/Materials | Hacked Adv. Sensor Array | -8/Materials | Hacked Adv. Signal Interpreter | -7/Factory | Hacked Adv. Terrain Scan Processor | -7/Factory | Hacked Arm. Huge Wheel | -7/Factory | Hacked Combat Drone Bay | -6/Data Miner | Free Lgt. Regenerative Plating | -6/Data Miner | Free Exp. Flexi-carbon Leg | -6/Data Miner | Free Exp. Cesium-ion Thruster | -6/Data Miner | Free Exp. Sensor Array | -6/Data Miner | Free Exp. Terrain Scanner | -6/Data Miner | Free Exp. Terrain Scan Processor | -6/Data Miner | Free Exp. ECM Suite | -6/Data Miner | Free Assault Drone Bay | -5/Zhirov | Free Exp. Heat Sink | -5/Zhirov | Free Exp. Optical Array | -5/Zhirov | Free Imp. Arc Thrower | -5/Zhirov | Free Biometal Heavy Treads | -4/Factory | Hacked Centrium Wheel | -4/Extension | Hacked Imp. KE Penetrator | -3/Testing | Scanalyzed Robot Schematics ------------------ S-27 Virus | -6/Data Miner | Free G-50 Soldier | -6/Data Miner | Free G-67 Veteran | -6/Data Miner | Free L-41 Fighter | -6/Data Miner | Free H-66 Slayer | -6/Data Miner | Free P-70 Sage | -6/Data Miner | Free I-36 Angel | -6/Data Miner | Free I-47 Archangel | -6/Data Miner | Free Fabricated ------------ Adv. Signal Interpreter | x2 | -6/Factory Exp. Sensor Array | x1 | -4/Factory Biometal Heavy Treads | x2 | -4/Factory Exp. Terrain Scanner | x1 | -3/Testing Biometal Heavy Treads | x2 | -2/Research Biometal Heavy Treads | x2 | -2/Research Biometal Heavy Treads | x2 | -2/Research Alien Tech Used ----------------- Core Expander Integrated Reactor Transdimensional Reconstructor Achievements -------------- Giant Slayer Challenges ------------ None Game ------ Seed AntigravHelicalMatter Manual? 0 Play Time 08:43:52 Cumulative 936.8 hours Start 2020.09.25 @ 13:55:00 End 2020.09.28 @ 17:37:45 Sessions 25 Manual Loads 0 Difficulty Rogue Special Mode None Game No. 263 Rogue 263 Adventurer 0 Explorer 0 Win Type - Total 32 Types 21/3/5/3/0/0/0/0/0 Lore% 74 Gallery% 86 Achievement% 71 Wizard Run 0 Options --------- ASCII 0 Keyboard 1 Movement Numpad Keybinds 0 Fullscreen 1 Font 24/Smallcaps Map View 76x50 Tactical HUD 1 Map Filters NONE Filters NONE Steam 1 RUN: 9db85c4d-bb53-4bf0-b12e-e14ea05676d4